bitfinex/quotes_ETHUSD_20240610
["timestamp","ask_amount","ask_price","bid_price","bid_amount"]
[1717998305594,0.796,3685.9,3685.3,2.494935]
[1717998305595,0.796,3685.9,3685.4,0.85365375]
[1717998305789,0.08407093,3685.8,3685.5,35.85365375]
[1717998306222,0.796,3685.9,3685.5,35.85365375]
[1717998306383,0.796,3685.9,3685.5,35.0]
[1717998307131,2.3994,3685.6,3685.5,35.0]
[1717998310712,2.3994,3685.6,3685.0,1.35684]
[1717998311411,2.3994,3685.6,3685.1,35.0]
[1717998312638,3.75603,3685.6,3685.1,35.0]
[1717998313135,0.796,3685.4,3685.1,35.0]
[1717998313714,4.55203,3685.6,3685.1,35.0]
[1717998319088,0.796,3685.4,3685.1,35.0]
[1717998323059,3.75603,3685.6,3685.1,35.0]
[1717998323419,0.796,3685.4,3685.1,35.0]
[1717998331427,2.3047,3685.3,3685.1,35.0]
[1717998332246,0.796,3685.2,3685.1,35.0]
[1717998334628,2.3047,3685.3,3685.1,35.0]
[1717998337455,0.796,3685.2,3685.1,35.0]
[1717998339252,3.1007,3685.3,3685.1,35.0]
[1717998340017,0.796,3685.3,3685.1,35.0]
[1717998340722,0.796,3685.3,3684.6,1.35696]
[1717998340921,0.07785842,3685.2,3684.6,1.35696]
[1717998341145,0.796,3685.3,3684.6,1.35696]
[1717998341146,0.796,3685.3,3684.7,35.0]
[1717998345460,1.35673,3685.4,3684.8,1.35691]
[1717998345634,0.796,3685.4,3684.8,3.62161]
[1717998346160,0.07784845,3685.3,3684.9,35.0]
[1717998346523,0.796,3685.4,3684.9,35.0]
[1717998350251,2.4115,3685.5,3684.9,35.0]
[1717998350429,0.796,3685.4,3684.9,35.0]
[1717998360079,0.796,3685.1,3684.9,35.0]
[1717998361935,0.796,3685.1,3684.5,9.49067375]
[1717998362134,0.796,3684.9,3684.5,8.13365375]
[1717998362544,0.796,3684.9,3684.6,35.0]
[1717998364384,2.15291,3684.9,3684.6,35.0]
[1717998364887,0.796,3684.7,3684.5,7.28]
[1717998365178,0.796,3684.7,3684.3,0.85365375]
[1717998365379,0.796,3684.7,3684.4,35.0]
[1717998368690,0.796,3684.7,3684.2,1.35713]
[1717998369188,0.796,3684.7,3684.3,35.0]
[1717998373386,1.35691,3684.9,3684.3,35.0]
[1717998373387,0.796,3684.5,3684.3,35.0]
[1717998374453,1.357,3684.6,3684.3,35.0]
[1717998374652,0.796,3684.5,3684.3,35.0]
[1717998378298,0.796,3684.5,3683.9,7.28]
[1717998378454,0.796,3684.5,3683.9,8.53701738]
[1717998378656,0.796,3684.5,3684.0,35.0]
[1717998384982,0.796,3684.3,3684.0,35.0]
[1717998387312,0.796,3684.1,3684.0,35.0]
[1717998391414,0.796,3684.1,3683.3,4.63864]
[1717998391614,0.796,3684.1,3683.4,1.192464]
[1717998391794,0.796,3684.1,3683.3,4.63864]
[1717998391995,0.796,3684.1,3683.5,35.0]
[1717998404819,2.3681,3684.0,3683.3,1.35744]
[1717998405319,2.3681,3684.0,3683.4,35.0]
[1717998408229,0.796,3683.9,3683.4,35.0]
[1717998408845,2.15328,3683.9,3683.4,35.0]
[1717998414669,1.35728,3683.9,3683.4,35.0]
[1717998423635,2.319,3683.7,3683.3,1.35744]
[1717998424258,2.319,3683.7,3683.3,36.35744]
[1717998425547,0.796,3683.6,3683.3,35.0]
[1717998425750,0.796,3683.4,3683.0,4.05757]
[1717998425961,2.4255,3683.3,3683.0,4.05757]
[1717998426174,2.4255,3683.3,3683.0,2.7]
[1717998426348,0.796,3683.2,3683.0,2.7]
[1717998426773,0.07336835,3683.1,3683.0,2.7]
[1717998427169,0.796,3683.2,3683.0,2.7]
[1717998427488,2.15354,3683.2,3683.0,2.7]
[1717998431495,2.15354,3683.2,3682.6,35.0]
[1717998432466,0.796,3683.0,3682.6,35.0]
[1717998432891,0.796,3682.8,3682.6,35.0]
[1717998435763,2.15369,3682.8,3682.6,35.0]
[1717998435968,2.15369,3682.8,3682.3,0.006]
[1717998436207,2.15369,3682.8,3682.1,7.286]
[1717998436208,0.796,3682.6,3682.1,7.286]
[1717998436403,0.796,3682.6,3682.1,0.97381]
[1717998436608,0.796,3682.6,3682.2,35.0]
[1717998438520,1.35777,3682.5,3682.2,35.0]
[1717998438756,3.2911,3682.4,3682.2,35.0]
[1717998439807,1.35777,3682.5,3682.2,35.0]
[1717998441881,1.35777,3682.5,3682.0,0.006]
[1717998442081,1.35777,3682.5,3681.9,0.006]
[1717998442282,1.35777,3682.5,3681.9,0.950003]
[1717998442527,1.35777,3682.5,3682.0,35.0]
[1717998442718,1.35777,3682.5,3682.0,35.006]
[1717998448350,2.4951,3682.6,3682.0,35.006]
[1717998452012,3.2911,3682.6,3682.0,35.006]
[1717998471255,0.464877,3682.5,3682.0,35.006]
[1717998471917,3.2911,3682.6,3682.0,35.006]
[1717998473306,2.4665,3682.5,3682.0,35.006]
[1717998476241,2.4665,3682.5,3682.0,0.006]
[1717998476406,0.07019804,3682.4,3681.9,1.36396]
[1717998476610,2.4617,3682.3,3681.9,1.36396]
[1717998476809,0.07010771,3682.2,3681.9,1.36396]
[1717998477044,2.4617,3682.3,3681.9,1.35796]
[1717998477212,2.4617,3682.3,3681.9,1.36396]
[1717998477903,0.07003869,3682.2,3682.0,35.0]
[1717998478333,2.4617,3682.3,3682.0,35.0]
[1717998484853,2.265,3682.6,3682.1,1.35792]
[1717998485684,2.265,3682.6,3682.1,36.35792]
[1717998486555,2.265,3682.6,3682.3,1.35782]
[1717998486883,1.35752,3683.2,3682.3,1.35782]
[1717998486884,0.796,3682.9,3682.3,1.35782]
[1717998487065,0.0680922,3682.8,3682.3,1.35782]
[1717998487254,0.796,3682.9,3682.3,1.35782]
[1717998487672,0.0680922,3682.8,3682.3,1.35782]
[1717998488078,0.0680922,3682.8,3682.4,35.0]
[1717998488404,0.796,3682.9,3682.4,35.0]
[1717998488604,1.15596415,3682.9,3682.4,35.0]
[1717998489011,0.2800517,3683.3,3682.7,1.35767]
[1717998489180,2.87041604,3683.4,3682.7,2.15367]
[1717998489501,0.06574427,3683.3,3682.9,1.35758]
[1717998489704,0.06574427,3683.3,3683.0,35.0]
[1717998489911,2.4453,3683.6,3683.1,2.15355]
[1717998490070,2.4453,3683.9,3683.1,2.15355]
[1717998490271,2.76943,3683.9,3683.1,2.15355]
[1717998490499,2.76943,3683.9,3683.1,1.35755]
[1717998490706,0.0620118,3683.8,3683.1,1.35755]
[1717998490882,0.8580118,3683.8,3683.2,35.0]
[1717998491090,0.796,3683.8,3683.2,35.0]
[1717998491431,2.76943,3683.9,3683.1,1.35755]
[1717998491432,0.796,3683.6,3683.1,1.35755]
[1717998491768,0.796,3683.6,3683.1,36.35755]
[1717998492208,2.4453,3683.9,3683.4,1.35742]
[1717998492404,2.4722,3684.2,3683.4,1.35742]
[1717998493772,2.292,3684.6,3683.7,1.35731]
[1717998493974,2.292,3684.6,3683.9,1.35724]
[1717998494522,2.292,3684.6,3683.8,3.2691]
[1717998494523,0.06043792,3684.5,3684.1,1.35716]
[1717998495009,2.4686,3685.0,3684.1,1.35716]
[1717998495228,0.796,3685.1,3684.4,1.35706]
[1717998495411,2.4686,3685.4,3684.4,2.15306]
[1717998495712,0.796,3685.5,3684.7,1.35694]
[1717998496068,0.796,3685.3,3684.7,1.35694]
[1717998496679,0.796,3684.9,3684.3,1.3571]
[1717998496889,1.35667,3685.5,3684.3,1.3571]
[1717998496890,0.796,3684.7,3684.3,1.3571]
[1717998497413,2.3101,3685.1,3684.3,1.3571]
[1717998497598,0.796,3684.8,3684.3,1.3571]
[1717998498116,0.796,3684.8,3683.9,1.35724]
[1717998498117,0.796,3684.4,3683.9,1.35724]
[1717998498411,0.31061,3684.8,3683.9,1.35724]
[1717998498616,0.796,3684.7,3683.9,1.35724]
[1717998499713,0.796,3684.5,3683.6,35.0]
[1717998499876,0.796,3684.3,3683.5,1.35738]
[1717998500075,0.796,3684.1,3683.5,1.35738]
[1717998500475,1.35701,3684.6,3683.5,1.35738]
[1717998500725,0.796,3684.2,3683.5,1.35738]
[1717998502114,0.55,3684.5,3683.2,2.7]
[1717998502115,0.796,3683.6,3683.2,2.7]
[1717998502327,0.796,3683.6,3683.1,1.35755]
[1717998502480,0.796,3683.6,3682.7,1.36367]
[1717998502679,0.796,3683.4,3682.8,42.28]
[1717998503111,0.796,3683.6,3682.8,42.28]
[1717998503302,0.796,3683.6,3682.9,1.35762]
[1717998505517,1.35733,3683.7,3682.9,1.35762]
[1717998505820,1.35717,3684.2,3683.0,0.796]
[1717998506005,0.796,3683.9,3683.0,0.796]
[1717998506189,0.796,3683.7,3682.9,36.35762]
[1717998506720,0.796,3683.9,3683.1,1.35755]
[1717998507023,0.05797332,3683.8,3683.1,1.35755]
[1717998507530,1.06645759,3683.9,3683.1,1.35755]
[1717998507703,0.05797432,3683.8,3683.1,1.35755]
[1717998507886,1.06645759,3683.9,3683.1,1.35755]
[1717998508210,0.05797432,3683.8,3683.1,1.35755]
[1717998508722,1.35729,3683.8,3683.1,1.35755]
[1717998508921,2.31606476,3683.8,3683.1,1.35755]
[1717998511021,1.35716,3684.2,3683.3,1.35746]
[1717998511192,2.15316,3684.2,3683.3,1.35746]
[1717998511382,0.05814519,3684.1,3683.3,1.35746]
[1717998511583,2.15316,3684.2,3683.3,1.35746]
[1717998511828,2.15316,3684.2,3683.3,2.15346]
[1717998512116,0.05814519,3684.1,3683.3,2.15346]
[1717998512318,0.85414519,3684.1,3683.4,35.0]
[1717998512508,0.796,3684.1,3683.4,35.0]
[1717998512916,1.35716,3684.2,3683.4,35.0]
[1717998513213,0.796,3684.1,3683.4,35.0]
[1717998514439,0.796,3684.1,3683.3,1.35746]
[1717998514723,0.05813739,3684.0,3683.3,1.799206]
[1717998514928,0.05813739,3684.0,3683.5,1.35738]
[1717998515133,0.796,3684.3,3683.5,2.15338]
[1717998515290,0.05706912,3684.2,3683.5,2.15338]
[1717998515491,1.35711,3684.3,3683.5,2.0169368]
[1717998515692,0.85322624,3684.2,3683.5,2.0169368]
[1717998515911,0.05722624,3684.2,3683.5,2.0169368]
[1717998516115,0.796,3684.2,3683.5,2.0169368]
[1717998516318,1.35711,3684.3,3683.6,2.65030545]
[1717998516650,0.05719788,3684.2,3683.6,2.65030545]
[1717998516991,2.15311,3684.3,3683.6,2.65030545]
[1717998516992,1.35711,3684.3,3683.6,2.65030545]
[1717998517221,3.0,3684.7,3683.7,1.35732]
[1717998517222,0.796,3684.5,3683.7,1.35732]
[1717998517731,0.0572572,3684.4,3683.7,1.35732]
[1717998517895,0.796,3684.5,3683.7,1.35732]
[1717998518097,0.05723534,3684.4,3683.7,1.35732]
[1717998518297,0.796,3684.5,3683.7,1.35732]
[1717998518499,0.05724627,3684.4,3683.7,1.35732]
[1717998518940,4.35697,3684.7,3683.7,1.35732]
[1717998519134,0.05720423,3684.6,3683.9,1.35722]
[1717998519339,0.05720423,3684.6,3683.9,4.50442]
[1717998519636,0.796,3684.8,3683.9,39.954862]
[1717998519829,0.05717457,3684.5,3683.9,39.954862]
[1717998520032,6.70315,3685.1,3683.9,39.954862]
[1717998520339,0.42495912,3685.2,3684.4,1.35704]
[1717998521897,0.796,3685.3,3684.4,1.35704]
[1717998522534,3.0,3685.4,3684.4,1.35704]
[1717998522535,0.796,3685.1,3684.4,1.35704]
[1717998522733,0.796,3684.9,3684.4,1.35704]
[1717998523236,0.796,3685.1,3684.4,1.35704]
[1717998523807,0.05794423,3685.0,3684.4,36.35704]
[1717998524198,0.796,3685.1,3684.4,36.35704]
[1717998525605,1.35686,3685.0,3684.0,1.35718]
[1717998525813,0.796,3684.9,3684.0,1.35718]
[1717998526057,0.796,3684.7,3684.0,1.35718]
[1717998527321,0.796,3684.9,3684.0,1.35718]
[1717998528006,1.35686,3685.0,3684.2,1.35713]
[1717998528240,2.15286,3685.0,3684.2,1.35713]
[1717998532712,0.05791458,3684.9,3684.2,1.35713]
[1717998533453,0.05791458,3684.9,3684.4,1.35704]
[1717998533839,0.796,3685.1,3684.4,1.35704]
[1717998534053,0.05788492,3684.8,3684.4,1.35704]
[1717998534225,0.796,3685.1,3684.4,1.35704]
[1717998534409,0.05785526,3684.7,3684.4,1.35704]
[1717998534613,1.311275,3685.1,3684.4,1.35704]
[1717998534809,0.0578256,3684.6,3684.4,1.35704]
[1717998535129,0.05779594,3684.5,3684.4,1.35704]
[1717998535327,1.311275,3685.1,3684.4,1.35704]
[1717998535663,0.05794423,3685.0,3684.4,1.35704]
[1717998542255,0.33054115,3685.0,3684.4,1.35704]
[1717998542551,3.2017,3684.9,3684.1,1.35717]
[1717998542750,0.05793865,3684.8,3684.1,1.35717]
[1717998543155,0.05793865,3684.8,3684.3,1.35708]
[1717998546158,0.85393865,3684.8,3684.3,1.35708]
[1717998546344,1.34284621,3684.8,3684.3,1.35708]
[1717998547325,1.34284621,3684.8,3684.0,1.35721]
[1717998548167,0.796,3684.6,3684.0,1.35721]
[1717998550356,0.48890756,3684.8,3684.0,1.35721]
[1717998550554,0.796,3684.7,3684.0,1.35721]
[1717998551175,1.18948931,3684.7,3683.7,0.796]
[1717998551348,0.796,3684.3,3683.7,1.35732]
[1717998551780,0.05741149,3684.2,3683.7,1.35732]
[1717998551944,2.15306,3684.5,3683.7,1.35732]
[1717998552136,0.05751797,3684.4,3683.7,1.35732]
[1717998553181,0.05751797,3684.4,3683.4,8.63743]
[1717998553182,0.796,3684.2,3683.4,8.63743]
[1717998553479,3.68921,3684.3,3683.4,8.63743]
[1717998553480,0.796,3684.0,3683.4,8.63743]
[1717998553856,0.05751105,3683.9,3683.5,35.0]
[1717998554245,0.796,3684.1,3683.5,35.0]
[1717998557089,2.15321,3684.1,3683.5,35.0]
[1717998558690,0.796,3683.9,3683.1,1.35755]
[1717998558874,0.796,3683.9,3683.1,2.451245]
[1717998559116,0.796,3683.9,3683.2,35.0]
[1717998559250,1.35721,3684.1,3683.2,35.0]
[1717998559251,0.796,3683.7,3683.2,35.0]
[1717998560066,0.796,3683.9,3683.2,35.0]
[1717998561579,0.796,3683.7,3683.2,35.0]
[1717998562051,1.35721,3684.1,3683.2,35.0]
[1717998562366,0.796,3683.8,3683.2,35.0]
[1717998566771,2.3593,3683.7,3683.2,35.0]
[1717998566971,0.796,3683.6,3683.1,1.35755]
[1717998567287,0.05731364,3683.5,3683.1,1.35755]
[1717998567596,0.05731364,3683.5,3683.1,36.35755]
[1717998567799,0.796,3683.6,3683.1,36.35755]
[1717998570897,0.796,3683.6,3682.7,3.83846]
[1717998571104,0.796,3683.2,3682.7,3.83246]
[1717998571269,0.796,3683.2,3682.8,35.0]
[1717998571473,0.796,3683.4,3682.8,35.0]
[1717998574516,1.35741,3683.5,3682.8,35.0]
[1717998574704,0.796,3683.4,3682.8,35.0]
[1717998582517,2.3115,3683.3,3682.8,35.0]
[1717998582731,0.796,3683.0,3682.5,7.286]
[1717998582909,0.796,3683.0,3682.5,7.28]
[1717998583309,0.796,3683.0,3682.6,35.0]
[1717998583729,0.796,3683.0,3682.5,7.28]
[1717998583730,2.2661,3682.9,3682.5,7.28]
[1717998584116,2.15367,3682.8,3682.3,35.006]
[1717998584310,2.15367,3682.8,3682.3,35.0]
[1717998587617,0.796,3682.8,3682.3,35.0]
[1717998588012,0.796,3682.6,3682.3,35.0]
[1717998588257,3.62375,3682.9,3682.3,35.0]
[1717998588258,0.796,3682.4,3682.3,35.0]
[1717998588556,0.796,3682.4,3682.1,1.35791]
[1717998588956,0.796,3682.4,3682.2,35.0]
[1717998589134,0.796,3682.6,3682.2,35.0]
[1717998589581,2.4551,3682.5,3682.2,35.0]
[1717998590560,0.796,3682.4,3682.2,35.0]
[1717998591715,0.796,3682.4,3682.0,0.006]
[1717998591992,0.05656805,3682.3,3681.9,0.006]
[1717998592287,0.05656805,3682.3,3681.9,35.0]
[1717998592490,0.05656805,3682.3,3681.9,35.006]
[1717998592699,0.796,3682.4,3681.9,35.006]
[1717998593060,0.796,3682.4,3681.9,36.62381825]
[1717998595498,2.4551,3682.5,3681.9,36.62381825]
[1717998597501,2.4551,3682.5,3682.0,1.35794]
[1717998597711,2.4551,3682.5,3682.0,1.36394]
[1717998598005,0.05648174,3682.4,3682.0,1.36394]
[1717998598202,0.05648174,3682.4,3682.0,36.35794]
[1717998598412,2.4551,3682.5,3682.0,36.35794]
[1717998598614,2.4551,3682.5,3682.0,36.36394]
[1717998599091,1.35772,3682.7,3682.0,36.36394]
[1717998599288,2.15372,3682.7,3682.0,36.36394]
[1717998600302,0.796,3682.7,3682.0,36.36394]
[1717998601783,0.796,3682.7,3682.0,1.36394]
[1717998601985,0.05646204,3682.6,3682.0,1.36394]
[1717998602270,0.05646204,3682.6,3682.2,1.35788]
[1717998602708,0.796,3682.7,3682.2,1.35788]
[1717998605842,0.05579401,3682.6,3682.2,1.35788]
[1717998606132,0.05579401,3682.6,3682.2,36.35788]
[1717998606633,2.3302,3682.8,3682.2,36.35788]
[1717998608927,0.796,3682.7,3682.2,36.35788]
[1717998609130,0.796,3682.5,3682.2,1.35788]
[1717998609419,2.50491241,3682.4,3682.2,1.35788]
[1717998609769,2.4492,3682.4,3682.2,1.35788]
[1717998610012,0.796,3682.5,3682.2,1.35788]
[1717998610207,1.35765,3682.9,3682.2,1.35788]
[1717998610377,0.05569053,3682.4,3682.2,1.36388]
[1717998610572,0.796,3682.8,3682.2,1.35788]
[1717998610775,0.796,3682.8,3682.3,35.0]
[1717998614122,2.348,3682.7,3682.3,35.0]
[1717998614834,0.796,3682.8,3682.3,35.0]
[1717998615042,2.3809,3682.9,3682.4,1.35781]
[1717998615190,3.73842,3683.2,3682.4,1.35781]
[1717998615532,2.3809,3683.2,3682.6,1.35772]
[1717998615733,2.4535,3683.7,3682.8,1.35762]
[1717998615937,0.796,3683.5,3682.8,1.35762]
[1717998616502,0.38108,3683.6,3682.8,1.35762]
[1717998616738,0.796,3683.5,3682.8,1.35762]
[1717998617037,0.796,3683.5,3682.9,2.3169]
[1717998617333,0.796,3683.4,3682.8,1.35762]
[1717998617545,2.3096,3683.3,3682.8,1.35762]
[1717998618697,2.4319,3683.7,3682.8,1.35762]
[1717998618897,0.796,3683.5,3682.8,1.35762]
[1717998619400,0.05594529,3683.4,3682.8,1.35762]
[1717998619931,0.05594529,3683.4,3682.8,36.35762]
[1717998620439,0.796,3683.5,3682.8,36.35762]
[1717998621135,2.4319,3683.7,3682.8,36.35762]
[1717998621136,0.796,3683.3,3682.8,36.35762]
[1717998622400,0.796,3683.3,3682.8,38.36915099]
[1717998622630,0.796,3683.3,3682.9,2.3678]
[1717998623149,0.796,3683.4,3682.9,2.3678]
[1717998623500,0.05591083,3683.3,3682.9,2.3678]
[1717998624100,0.796,3683.4,3682.9,2.3678]
[1717998624315,0.796,3683.4,3682.8,1.35762]
[1717998625305,0.796,3683.4,3682.8,2.27224947]
[1717998626104,2.4319,3683.7,3682.8,2.27224947]
[1717998626439,0.796,3683.5,3682.8,2.27224947]
[1717998627452,2.4319,3683.7,3682.8,2.27224947]
[1717998627605,0.796,3683.6,3682.8,2.27224947]
[1717998629045,2.4319,3683.7,3683.1,1.35754]
[1717998629247,3.2279,3683.7,3683.1,1.35754]
[1717998631549,0.796,3683.5,3683.1,1.35754]
[1717998635151,0.09280715,3683.4,3683.1,1.35754]
[1717998635847,0.796,3683.5,3683.1,1.35754]
[1717998639465,0.09177642,3683.4,3683.1,1.35754]
[1717998639845,0.796,3683.5,3683.1,1.35754]
[1717998640632,3.71744,3683.4,3682.7,1.36368]
[1717998640927,0.796,3683.2,3682.7,1.35768]
[1717998642870,3.156,3683.4,3682.7,1.35768]
[1717998643163,0.796,3683.4,3682.8,2.4827]
[1717998644427,0.09174774,3683.3,3682.8,2.4827]
[1717998645130,0.796,3683.4,3682.8,2.4827]
[1717998646635,0.796,3683.4,3682.7,36.35768]
[1717998650854,0.796,3683.2,3682.7,36.35768]
[1717998651061,0.796,3683.2,3682.7,1.35768]
[1717998651885,3.2017,3683.2,3682.7,1.35768]
[1717998652170,3.2017,3683.2,3682.4,0.006]
[1717998652171,0.796,3683.0,3682.4,0.006]
[1717998652378,0.796,3683.0,3682.3,1.35782]
[1717998652561,0.09161899,3682.9,3682.4,35.0]
[1717998652764,0.796,3683.0,3682.4,35.0]
[1717998657062,0.796,3683.0,3682.3,1.36382]
[1717998657394,0.796,3683.0,3682.3,1.35782]
[1717998658885,2.4356,3682.5,3682.2,0.006]
[1717998659087,2.4356,3682.5,3681.9,1.36396]
[1717998659272,0.09137154,3682.4,3681.9,1.36396]
[1717998659475,2.4356,3682.5,3681.9,1.36396]
[1717998660380,0.796,3682.6,3681.9,3.65146]
[1717998660681,0.796,3682.6,3682.0,0.006]
[1717998662187,3.76973,3682.7,3682.0,0.006]
[1717998662395,0.796,3682.6,3682.0,0.006]
[1717998662716,0.08840552,3682.5,3682.0,0.006]
[1717998662878,0.08840552,3682.5,3682.1,35.0]
[1717998663073,0.796,3682.6,3682.1,35.0]
[1717998672207,0.796,3682.4,3682.1,35.0]
[1717998674086,0.796,3682.2,3682.0,0.006]
[1717998674445,0.796,3682.4,3681.9,1.35796]
[1717998674593,0.796,3682.4,3682.0,35.0]
[1717998679594,2.413,3682.3,3682.0,35.0]
[1717998679795,2.413,3682.3,3681.9,0.006]
[1717998680020,2.413,3682.3,3681.8,0.006]
[1717998680232,0.08614941,3682.2,3681.9,35.0]
[1717998680740,0.796,3682.2,3681.8,0.006]
[1717998681098,0.08603596,3682.1,3681.8,0.006]
[1717998681301,0.796,3682.2,3681.7,37.706]
[1717998681499,0.796,3682.2,3681.8,0.006]
[1717998684347,2.413,3682.3,3681.8,0.006]
[1717998684647,2.413,3682.3,3681.8,35.006]
[1717998687055,0.796,3682.2,3681.8,35.006]
[1717998687640,2.413,3682.3,3681.8,35.006]
[1717998690424,2.413,3682.3,3681.8,37.65630545]
[1717998691676,0.796,3682.4,3681.8,37.65630545]
[1717998691961,0.796,3682.4,3681.9,0.006]
[1717998692278,2.3848,3682.5,3681.9,0.006]
[1717998692444,2.3901,3682.7,3681.9,0.75703055]
[1717998692627,0.88226486,3682.6,3682.0,0.006]
[1717998692978,0.796,3682.6,3682.0,1.36393]
[1717998693273,0.08624674,3682.5,3682.0,3.79603]
[1717998693558,0.08624674,3682.5,3682.1,35.0]
[1717998693953,0.796,3682.6,3682.1,35.0]
[1717998694272,2.3901,3682.7,3682.0,3.79603]
[1717998694644,2.3901,3682.7,3682.0,38.79603]
[1717998694645,0.796,3682.6,3682.0,38.79603]
[1717998697718,0.796,3682.6,3682.0,3.79603]
[1717998698139,2.3901,3682.7,3682.2,1.35787]
[1717998699140,0.796,3682.6,3682.2,1.35787]
[1717998701556,0.08623199,3682.5,3682.2,1.35787]
[1717998701755,0.08623199,3682.5,3682.2,36.35787]
[1717998702108,0.796,3682.6,3682.2,36.35787]
[1717998703049,2.3207,3683.0,3682.2,36.35787]
[1717998703223,0.796,3682.9,3682.2,36.36387]
[1717998704630,2.3207,3683.0,3682.2,36.36387]
[1717998704835,3.1167,3683.0,3682.4,1.35778]
[1717998705444,0.08641363,3682.9,3682.5,35.0]
[1717998705659,0.08641363,3682.9,3682.4,1.35778]
[1717998705820,3.1167,3683.0,3682.4,1.35778]
[1717998706148,0.08635069,3682.9,3682.4,1.35778]
[1717998706509,3.1167,3683.0,3682.4,1.35778]
[1717998708550,0.08635069,3682.9,3682.4,1.35778]
[1717998708926,3.1167,3683.0,3682.4,1.35778]
[1717998710944,2.3207,3683.0,3682.4,1.35778]
[1717998711147,0.796,3682.9,3682.4,1.35778]
[1717998713421,0.08637503,3682.8,3682.4,1.35778]
[1717998720466,0.08637503,3682.8,3682.2,0.006]
[1717998720645,2.378,3682.6,3682.1,1.36391]
[1717998720972,0.08538493,3682.5,3682.1,1.35791]
[1717998721643,2.378,3682.6,3682.1,1.35791]
[1717998744031,3.1645,3682.8,3682.1,1.35791]
[1717998744330,0.08224643,3682.7,3682.1,1.36391]
[1717998748125,0.08224643,3682.7,3682.4,1.3578]
[1717998748327,2.3537,3683.1,3682.4,1.3578]
[1717998748658,0.08233917,3683.0,3682.4,3.7264]
[1717998749241,0.08233917,3683.0,3682.6,1.3577]
[1717998749408,0.08233917,3683.0,3682.9,1.35762]
[1717998749766,0.08237047,3683.0,3682.9,1.35762]
[1717998749888,2.3364,3683.5,3682.9,1.35762]
[1717998750084,0.08245484,3683.4,3682.9,1.35762]
[1717998751701,0.87845484,3683.4,3682.9,1.35762]
[1717998754233,0.08245484,3683.4,3682.9,1.35762]
[1717998754385,0.87845484,3683.4,3682.9,1.35762]
[1717998755050,0.08245484,3683.4,3682.9,1.35762]
[1717998755481,0.87845484,3683.4,3682.9,1.35762]
[1717998756336,0.08245484,3683.4,3682.9,1.35762]
[1717998756516,0.87845484,3683.4,3682.9,1.35762]
[1717998756719,3.1324,3683.5,3682.9,1.35762]
[1717998758548,2.3364,3683.5,3682.9,1.35762]
[1717998758739,3.1324,3683.5,3682.9,1.35762]
[1717998759345,3.1324,3683.5,3682.9,2.1528569]
[1717998763349,3.1324,3683.5,3682.9,1.35762]
[1717998768843,0.796,3683.5,3682.9,1.35762]
[1717998771926,0.08234488,3683.4,3682.9,1.35762]
[1717998772228,0.796,3683.5,3682.9,1.35762]
[1717998772582,0.08234488,3683.4,3682.9,1.35762]
[1717998772787,0.796,3683.5,3682.9,1.35762]
[1717998773606,0.08234488,3683.4,3682.9,1.35762]
[1717998774211,0.796,3683.5,3682.9,1.35762]
[1717998774693,0.796,3683.3,3682.9,1.35762]
[1717998775909,1.35736,3683.6,3682.9,1.35762]
[1717998776115,0.796,3683.4,3682.9,1.35762]
[1717998779916,0.0823504,3683.3,3682.9,1.35762]
[1717998780440,0.796,3683.4,3682.9,1.35762]
[1717998783829,0.08233521,3683.3,3682.9,1.35762]
[1717998784246,0.796,3683.4,3682.9,1.35762]
[1717998787612,0.082339,3683.3,3682.9,1.35762]
[1717998788049,0.796,3683.4,3682.9,1.35762]
[1717998791356,0.08235419,3683.3,3682.9,1.35762]
[1717998791924,0.796,3683.4,3682.9,1.35762]
[1717998793558,0.796,3683.4,3683.0,2.4199]
[1717998796270,1.35736,3683.6,3683.0,2.4199]
[1717998796574,2.15336,3683.6,3683.0,2.4199]
[1717998797637,3.85257,3683.9,3683.0,2.4199]
[1717998797867,0.796,3683.6,3683.0,2.4199]
[1717998798492,0.42507264,3684.0,3683.2,2.2895]
[1717998798632,0.42507264,3684.0,3683.6,2.2895]
[1717998798971,0.42507264,3684.0,3683.7,1.35732]
[1717998799173,0.07736427,3683.9,3683.7,1.35732]
[1717998799332,1.35704,3684.5,3683.8,2.81903586]
[1717998799533,0.07479212,3684.4,3683.8,2.81903586]
[1717998801177,0.07479212,3684.4,3683.9,35.0]
[1717998801387,2.15304,3684.5,3683.9,35.0]
[1717998805558,0.42493067,3685.2,3684.0,3.0]
[1717998805890,8.36592,3685.8,3684.9,1.35688]
[1717998805891,0.796,3685.7,3684.9,1.35688]
[1717998806088,0.06311864,3685.1,3684.9,1.35688]
[1717998806247,0.796,3685.7,3684.9,1.35688]
[1717998806443,0.796,3685.7,3684.9,4.00718545]
[1717998807968,1.35657,3685.8,3684.9,4.00718545]
[1717998808289,0.796,3685.6,3684.9,4.00718545]
[1717998809353,0.06323328,3685.5,3684.9,1.35688]
[1717998809684,0.06323328,3685.5,3685.0,35.0]